[Event "*** Titled Tuesday Blitz"]
[Site "Chess.com"]
[Date "2020.04.21"]
[Round "6"]
[White "ChristianAlm"]
[Black "tacticthunder"]
[Result "1-0"]
[WhiteElo "2469"]
[BlackElo "2596"]
[TimeControl "180+1"]
[EndTime "11:10:22 PDT"]
[Termination "ChristianAlm won by resignation"]

1. d4 {[%clk 0:03:00.9]} 1... Nf6 {[%clk 0:02:59.7]} 2. Bg5 {[%clk 0:02:56.4]}
2... d5 {[%clk 0:02:59.4]} 3. Nd2 {[%clk 0:02:51.7]} 3... Bf5 {[%clk 0:02:58.2]}
4. e3 {[%clk 0:02:50.6]} 4... Nbd7 {[%clk 0:02:53.5]} 5. f4 {[%clk 0:02:45.6]}
5... c5 {[%clk 0:02:49.8]} 6. c3 {[%clk 0:02:45.2]} 6... h6 {[%clk 0:02:44.9]}
7. Bh4 {[%clk 0:02:44.5]} 7... Qb6 {[%clk 0:02:40.9]} 8. Qb3 {[%clk 0:02:22.6]}
8... c4 {[%clk 0:02:40.2]} 9. Qxb6 {[%clk 0:02:21.5]} 9... axb6 {[%clk 0:02:40]}
10. Ngf3 {[%clk 0:02:20.7]} 10... b5 {[%clk 0:02:39]} 11. Be2 {[%clk 0:02:16.5]}
11... e6 {[%clk 0:02:35.9]} 12. O-O {[%clk 0:02:15.4]} 12... b4 {[%clk
0:02:31.4]} 13. Ne5 {[%clk 0:02:09.1]} 13... bxc3 {[%clk 0:01:50.3]} 14. bxc3
{[%clk 0:02:10]} 14... Ne4 {[%clk 0:01:28.3]} 15. Nxe4 {[%clk 0:01:50.1]} 15...
Bxe4 {[%clk 0:01:29.2]} 16. Bf3 {[%clk 0:01:44.2]} 16... Bf5 {[%clk 0:01:09.1]}
17. g4 {[%clk 0:01:34.8]} 17... Nxe5 {[%clk 0:01:05.2]} 18. gxf5 {[%clk
0:01:20.6]} 18... Nxf3+ {[%clk 0:01:02.4]} 19. Rxf3 {[%clk 0:01:21.5]} 19...
exf5 {[%clk 0:01:03.3]} 20. Rb1 {[%clk 0:01:17.3]} 20... Rxa2 {[%clk 0:00:23.8]}
21. Rxb7 {[%clk 0:01:14.2]} 21... Bd6 {[%clk 0:00:24]} 22. Rf2 {[%clk
0:01:06.6]} 22... Rxf2 {[%clk 0:00:21.1]} 23. Bxf2 {[%clk 0:00:58.9]} 23... g5
{[%clk 0:00:17.7]} 24. Bg3 {[%clk 0:00:50.5]} 24... O-O {[%clk 0:00:16.5]} 25.
Rd7 {[%clk 0:00:49]} 25... Ba3 {[%clk 0:00:13.2]} 26. Rxd5 {[%clk 0:00:46.8]}
26... Rc8 {[%clk 0:00:11.1]} 27. fxg5 {[%clk 0:00:43.2]} 27... Bb2 {[%clk
0:00:07.4]} 28. Be1 {[%clk 0:00:40.5]} 28... hxg5 {[%clk 0:00:06.1]} 29. Rxf5
{[%clk 0:00:39.9]} 29... f6 {[%clk 0:00:06.4]} 30. Rxf6 {[%clk 0:00:34.9]} 30...
Kg7 {[%clk 0:00:06.7]} 31. Rf5 {[%clk 0:00:34.4]} 31... Kg6 {[%clk 0:00:06.9]}
32. Rc5 {[%clk 0:00:34]} 32... Rxc5 {[%clk 0:00:06.3]} 33. dxc5 {[%clk
0:00:34.2]} 33... Kf5 {[%clk 0:00:07.2]} 34. Kf2 {[%clk 0:00:29.1]} 34... Ke5
{[%clk 0:00:07.2]} 35. Kf3 {[%clk 0:00:19.1]} 35... Bc1 {[%clk 0:00:06.4]} 36.
e4 {[%clk 0:00:16.6]} 36... Ke6 {[%clk 0:00:06.2]} 37. Bf2 {[%clk 0:00:13.4]}
37... Bd2 {[%clk 0:00:04.6]} 38. Bd4 {[%clk 0:00:13.1]} 38... Kd7 {[%clk
0:00:04.6]} 39. Kg4 {[%clk 0:00:12.2]} 39... Ke6 {[%clk 0:00:04.7]} 40. h3
{[%clk 0:00:12.4]} 40... Bc1 {[%clk 0:00:04.1]} 41. Kf3 {[%clk 0:00:12.2]} 41...
Bd2 {[%clk 0:00:04.4]} 42. Ke2 {[%clk 0:00:11.7]} 42... Bf4 {[%clk 0:00:03.8]}
43. Be3 {[%clk 0:00:11.5]} 43... Be5 {[%clk 0:00:04.1]} 44. Kd2 {[%clk
0:00:09.8]} 44... Bf6 {[%clk 0:00:04.5]} 45. Bd4 {[%clk 0:00:06.4]} 45... Be7
{[%clk 0:00:04.6]} 46. Ke3 {[%clk 0:00:06]} 46... Bd8 {[%clk 0:00:04.4]} 47. Kf3
{[%clk 0:00:06.2]} 47... Bc7 {[%clk 0:00:04.9]} 48. Kg4 {[%clk 0:00:06.4]} 48...
Bd8 {[%clk 0:00:05.1]} 49. Be3 {[%clk 0:00:06.7]} 49... Bf6 {[%clk 0:00:05.6]}
50. Bd2 {[%clk 0:00:06.7]} 50... Be7 {[%clk 0:00:04.6]} 51. Bxg5 {[%clk
0:00:05.5]} 51... Bxc5 {[%clk 0:00:05]} 52. Bd2 {[%clk 0:00:06.4]} 52... Ke5
{[%clk 0:00:05.1]} 53. Kf3 {[%clk 0:00:06.3]} 53... Ba3 {[%clk 0:00:04.3]} 54.
h4 {[%clk 0:00:05.9]} 54... Bf8 {[%clk 0:00:03.4]} 55. Bf4+ {[%clk 0:00:05.6]}
55... Kf6 {[%clk 0:00:03]} 56. h5 {[%clk 0:00:06.5]} 56... Bg7 {[%clk
0:00:02.8]} 57. Be3 {[%clk 0:00:05.8]} 57... Ke6 {[%clk 0:00:02.8]} 58. Bd4
{[%clk 0:00:05.8]} 58... Bh6 {[%clk 0:00:02.7]} 59. Kg4 {[%clk 0:00:05.4]} 59...
Bd2 {[%clk 0:00:02.3]} 60. Kf3 {[%clk 0:00:05.3]} 60... Bh6 {[%clk 0:00:02.5]}
61. Ke2 {[%clk 0:00:05.4]} 61... Bg7 {[%clk 0:00:03.4]} 62. Bxg7 {[%clk
0:00:04.1]} 62... Kf7 {[%clk 0:00:03.9]} 63. Bd4 {[%clk 0:00:03.5]} 63... Ke6
{[%clk 0:00:04.8]} 64. Ke3 {[%clk 0:00:04.4]} 64... Kf7 {[%clk 0:00:05.7]} 65.
Kf3 {[%clk 0:00:05.3]} 65... Kg8 {[%clk 0:00:05.7]} 66. Kf4 {[%clk 0:00:06.2]}
66... Kh7 {[%clk 0:00:06.6]} 67. e5 {[%clk 0:00:07.1]} 67... Kh6 {[%clk
0:00:07]} 68. Ke4 {[%clk 0:00:08]} 68... Kxh5 {[%clk 0:00:07.9]} 69. Kd5 {[%clk
0:00:08.9]} 69... Kg6 {[%clk 0:00:08.8]} 70. Kxc4 {[%clk 0:00:09.8]} 70... Kf7
{[%clk 0:00:09.7]} 71. Kd5 {[%clk 0:00:10.7]} 71... Ke8 {[%clk 0:00:10.6]} 72.
c4 {[%clk 0:00:11.6]} 72... Kd7 {[%clk 0:00:11.5]} 73. c5 {[%clk 0:00:12.5]} 1-0

[Event "*** Titled Tuesday Blitz"]
[Site "Chess.com"]
[Date "2020.04.21"]
[Round "6"]
[White "Salem-AR"]
[Black "Kobalia"]
[Result "1-0"]
[WhiteElo "2993"]
[BlackElo "2711"]
[TimeControl "180+1"]
[EndTime "11:10:33 PDT"]
[Termination "Salem-AR won on time"]

1. d4 {[%clk 0:03:00.9]} 1... d5 {[%clk 0:03:00]} 2. c4 {[%clk 0:02:53.7]} 2...
c6 {[%clk 0:02:59.1]} 3. Nc3 {[%clk 0:02:54]} 3... Nf6 {[%clk 0:02:58]} 4. Nf3
{[%clk 0:02:54.6]} 4... a6 {[%clk 0:02:57.5]} 5. g3 {[%clk 0:02:50.1]} 5... Bg4
{[%clk 0:02:45.7]} 6. Bg2 {[%clk 0:02:49]} 6... e6 {[%clk 0:02:44.5]} 7. Ne5
{[%clk 0:02:47.6]} 7... Bf5 {[%clk 0:02:31.4]} 8. Qb3 {[%clk 0:02:47.4]} 8... b5
{[%clk 0:02:28.3]} 9. cxd5 {[%clk 0:02:43.6]} 9... cxd5 {[%clk 0:02:27.5]} 10.
Bf4 {[%clk 0:02:09.8]} 10... Be7 {[%clk 0:02:25.8]} 11. Rc1 {[%clk 0:02:09.2]}
11... O-O {[%clk 0:02:24.9]} 12. O-O {[%clk 0:02:09.1]} 12... h6 {[%clk
0:02:12.9]} 13. Rfd1 {[%clk 0:02:04.2]} 13... Qb6 {[%clk 0:02:02.8]} 14. Na4
{[%clk 0:02:03]} 14... Qa5 {[%clk 0:01:43]} 15. Nc5 {[%clk 0:02:02]} 15... Bxc5
{[%clk 0:01:30.7]} 16. dxc5 {[%clk 0:01:58.5]} 16... Rc8 {[%clk 0:01:19]} 17. g4
{[%clk 0:01:50.2]} 17... Be4 {[%clk 0:01:15.5]} 18. f3 {[%clk 0:01:17.3]} 18...
Bh7 {[%clk 0:01:14.6]} 19. c6 {[%clk 0:00:58.5]} 19... Ra7 {[%clk 0:01:14]} 20.
h4 {[%clk 0:00:49.1]} 20... Rac7 {[%clk 0:01:10.7]} 21. g5 {[%clk 0:00:49.2]}
21... hxg5 {[%clk 0:01:10.4]} 22. hxg5 {[%clk 0:00:49]} 22... Nh5 {[%clk
0:01:04.6]} 23. Bd2 {[%clk 0:00:46.4]} 23... Qb6+ {[%clk 0:00:53.9]} 24. Be3
{[%clk 0:00:46.5]} 24... Qa5 {[%clk 0:00:54.4]} 25. Qc3 {[%clk 0:00:20.7]} 25...
Qxc3 {[%clk 0:00:42.3]} 26. Rxc3 {[%clk 0:00:20.7]} 26... f6 {[%clk 0:00:40.2]}
27. Bh3 {[%clk 0:00:17.2]} 27... Bf5 {[%clk 0:00:38.4]} 28. Bxf5 {[%clk
0:00:15.6]} 28... exf5 {[%clk 0:00:38.3]} 29. gxf6 {[%clk 0:00:09.4]} 29... gxf6
{[%clk 0:00:36.1]} 30. Ng6 {[%clk 0:00:08.5]} 30... Kf7 {[%clk 0:00:23.4]} 31.
Nf4 {[%clk 0:00:08.3]} 31... Nxf4 {[%clk 0:00:23]} 32. Bxf4 {[%clk 0:00:09.2]}
32... Rxc6 {[%clk 0:00:23.3]} 33. Rxc6 {[%clk 0:00:09.8]} 33... Nxc6 {[%clk
0:00:21.9]} 34. Rxd5 {[%clk 0:00:10.7]} 34... Nb4 {[%clk 0:00:20.5]} 35. Rd7+
{[%clk 0:00:11]} 35... Kg6 {[%clk 0:00:19]} 36. a3 {[%clk 0:00:10.2]} 36... Nc6
{[%clk 0:00:19]} 37. Kf2 {[%clk 0:00:09.6]} 37... Rd8 {[%clk 0:00:18.2]} 38. Rc7
{[%clk 0:00:06.7]} 38... Na5 {[%clk 0:00:18.1]} 39. Ra7 {[%clk 0:00:06.4]} 39...
Nc4 {[%clk 0:00:15.4]} 40. Rxa6 {[%clk 0:00:06.8]} 40... Kf7 {[%clk 0:00:13.2]}
41. b3 {[%clk 0:00:06.9]} 41... Ne5 {[%clk 0:00:12]} 42. Rb6 {[%clk 0:00:07.5]}
42... Rd5 {[%clk 0:00:10.9]} 43. Rb7+ {[%clk 0:00:06.9]} 43... Ke6 {[%clk
0:00:10.4]} 44. Rb6+ {[%clk 0:00:07.5]} 44... Kf7 {[%clk 0:00:10.3]} 45. Be3
{[%clk 0:00:07.3]} 45... Nd7 {[%clk 0:00:09.9]} 46. Ra6 {[%clk 0:00:07.8]} 46...
Nc5 {[%clk 0:00:09.3]} 47. Ra7+ {[%clk 0:00:06.1]} 47... Ke6 {[%clk 0:00:08.8]}
48. Bxc5 {[%clk 0:00:06.2]} 48... Rxc5 {[%clk 0:00:08.6]} 49. Rb7 {[%clk
0:00:06.8]} 49... Kd6 {[%clk 0:00:08]} 50. Rb6+ {[%clk 0:00:07.1]} 50... Ke5
{[%clk 0:00:07.5]} 51. b4 {[%clk 0:00:04.9]} 51... Rd5 {[%clk 0:00:07.2]} 52. e3
{[%clk 0:00:03.9]} 52... f4 {[%clk 0:00:07]} 53. Ke2 {[%clk 0:00:03.5]} 53...
fxe3 {[%clk 0:00:06.6]} 54. Kxe3 {[%clk 0:00:04.4]} 54... Kf5 {[%clk 0:00:06.9]}
55. Rc6 {[%clk 0:00:03.4]} 55... Ke5 {[%clk 0:00:06.6]} 56. f4+ {[%clk
0:00:03.3]} 56... Kf5 {[%clk 0:00:06]} 57. Rc5 {[%clk 0:00:03.9]} 57... Ke6
{[%clk 0:00:05.9]} 58. Rc6+ {[%clk 0:00:02.7]} 58... Kf5 {[%clk 0:00:05.9]} 59.
Rc7 {[%clk 0:00:02.9]} 59... Ke6 {[%clk 0:00:05.4]} 60. Rb7 {[%clk 0:00:03.4]}
60... Rh5 {[%clk 0:00:04.9]} 61. Rb6+ {[%clk 0:00:03.3]} 61... Ke7 {[%clk
0:00:03.8]} 62. Ke4 {[%clk 0:00:04]} 62... Rh3 {[%clk 0:00:03.3]} 63. Rxb5
{[%clk 0:00:03.9]} 63... Rxa3 {[%clk 0:00:03.2]} 64. Rb7+ {[%clk 0:00:04.8]}
64... Ke6 {[%clk 0:00:02.8]} 65. Rb6+ {[%clk 0:00:05.4]} 65... Ke7 {[%clk
0:00:02.3]} 66. Kf5 {[%clk 0:00:06]} 66... Rh3 {[%clk 0:00:02.1]} 67. Rb7+
{[%clk 0:00:06]} 67... Kd6 {[%clk 0:00:02.1]} 68. Kxf6 {[%clk 0:00:06.6]} 68...
Rh6+ {[%clk 0:00:01.6]} 69. Kg7 {[%clk 0:00:06.3]} 69... Rh4 {[%clk 0:00:01]}
70. f5 {[%clk 0:00:06.4]} 1-0

[Event "*** Titled Tuesday Blitz"]
[Site "Chess.com"]
[Date "2020.04.21"]
[Round "6"]
[White "BaMBoMaTTo"]
[Black "Omk124"]
[Result "1/2-1/2"]
[WhiteElo "2685"]
[BlackElo "2373"]
[TimeControl "180+1"]
[EndTime "11:10:33 PDT"]
[Termination "Game drawn by repetition"]

1. d4 {[%clk 0:03:00.9]} 1... Nf6 {[%clk 0:02:59]} 2. c4 {[%clk 0:03:00.9]} 2...
g6 {[%clk 0:02:58.7]} 3. Nc3 {[%clk 0:03:01.1]} 3... d5 {[%clk 0:02:59.4]} 4.
cxd5 {[%clk 0:03:02]} 4... Nxd5 {[%clk 0:02:59.9]} 5. e4 {[%clk 0:03:02.3]} 5...
Nxc3 {[%clk 0:03:00.4]} 6. bxc3 {[%clk 0:03:03.2]} 6... Bg7 {[%clk 0:03:01.1]}
7. Nf3 {[%clk 0:03:03.3]} 7... c5 {[%clk 0:03:01.5]} 8. Rb1 {[%clk 0:03:03.6]}
8... b6 {[%clk 0:03:01.1]} 9. Be2 {[%clk 0:03:01.8]} 9... O-O {[%clk 0:02:59.3]}
10. O-O {[%clk 0:03:01.6]} 10... Qc7 {[%clk 0:02:59.2]} 11. Bg5 {[%clk
0:02:57.3]} 11... Bb7 {[%clk 0:02:57.2]} 12. Qd3 {[%clk 0:02:56.6]} 12... Re8
{[%clk 0:02:55.6]} 13. d5 {[%clk 0:02:49.3]} 13... Nd7 {[%clk 0:02:55.4]} 14. c4
{[%clk 0:02:41.6]} 14... e6 {[%clk 0:02:53.1]} 15. Rfe1 {[%clk 0:02:32]} 15...
exd5 {[%clk 0:02:52.4]} 16. exd5 {[%clk 0:02:15.2]} 16... Qd6 {[%clk 0:02:48.7]}
17. Nd2 {[%clk 0:02:06.8]} 17... Ne5 {[%clk 0:02:48.1]} 18. Qg3 {[%clk
0:02:05.3]} 18... f5 {[%clk 0:02:46.7]} 19. h4 {[%clk 0:01:56.2]} 19... Nf7
{[%clk 0:02:37.8]} 20. Bf4 {[%clk 0:01:55.3]} 20... Be5 {[%clk 0:02:37.2]} 21.
Bxe5 {[%clk 0:01:55.5]} 21... Qxe5 {[%clk 0:02:37.6]} 22. Qxe5 {[%clk
0:01:34.8]} 22... Rxe5 {[%clk 0:02:36.2]} 23. a4 {[%clk 0:01:31.3]} 23... Rae8
{[%clk 0:02:31.3]} 24. Kf1 {[%clk 0:01:31.7]} 24... Nd6 {[%clk 0:02:15.4]} 25.
a5 {[%clk 0:01:31.2]} 25... Ba6 {[%clk 0:02:00.8]} 26. axb6 {[%clk 0:01:28.5]}
26... axb6 {[%clk 0:02:01.7]} 27. Ra1 {[%clk 0:00:59.2]} 27... Bb7 {[%clk
0:01:51.5]} 28. Nf3 {[%clk 0:00:41.9]} 28... R5e7 {[%clk 0:01:42.5]} 29. Bd3
{[%clk 0:00:41.7]} 29... Rxe1+ {[%clk 0:01:41.8]} 30. Nxe1 {[%clk 0:00:42.6]}
30... b5 {[%clk 0:01:40]} 31. cxb5 {[%clk 0:00:40.1]} 31... Bxd5 {[%clk
0:01:36.7]} 32. Ra6 {[%clk 0:00:32]} 32... Nc4 {[%clk 0:01:28.1]} 33. Nf3 {[%clk
0:00:19]} 33... Nb2 {[%clk 0:01:27.6]} 34. Be2 {[%clk 0:00:18.3]} 34... c4
{[%clk 0:01:25.1]} 35. Nd4 {[%clk 0:00:16.9]} 35... c3 {[%clk 0:01:22.3]} 36.
Rd6 {[%clk 0:00:17]} 36... Bc4 {[%clk 0:01:21.4]} 37. Bxc4+ {[%clk 0:00:15.5]}
37... Nxc4 {[%clk 0:01:22.3]} 38. Rc6 {[%clk 0:00:16.4]} 38... Nd2+ {[%clk
0:01:13.5]} 39. Kg1 {[%clk 0:00:16.9]} 39... Re1+ {[%clk 0:01:13.7]} 40. Kh2
{[%clk 0:00:17.1]} 40... Re4 {[%clk 0:01:08.3]} 41. Nf3 {[%clk 0:00:10.2]} 41...
Nxf3+ {[%clk 0:01:07]} 42. gxf3 {[%clk 0:00:11.1]} 42... Rxh4+ {[%clk
0:01:07.7]} 43. Kg3 {[%clk 0:00:11.7]} 43... Rb4 {[%clk 0:01:08.4]} 44. b6
{[%clk 0:00:12.3]} 44... Kg7 {[%clk 0:01:07.1]} 45. Rxc3 {[%clk 0:00:10.9]}
45... Rxb6 {[%clk 0:01:06.6]} 46. f4 {[%clk 0:00:11.6]} 46... Kf6 {[%clk
0:01:06.5]} 47. f3 {[%clk 0:00:11.4]} 47... h5 {[%clk 0:01:07]} 48. Rc8 {[%clk
0:00:11.4]} 48... Rb1 {[%clk 0:01:05.4]} 49. Rc6+ {[%clk 0:00:11.7]} 49... Kg7
{[%clk 0:01:05.9]} 50. Rd6 {[%clk 0:00:12.2]} 50... Kh6 {[%clk 0:01:06.6]} 51.
Rc6 {[%clk 0:00:12.2]} 51... Rg1+ {[%clk 0:01:07.1]} 52. Kh2 {[%clk 0:00:12.1]}
52... Re1 {[%clk 0:01:05.2]} 53. Kg3 {[%clk 0:00:12.5]} 53... Re3 {[%clk
0:01:05]} 54. Rb6 {[%clk 0:00:11.8]} 54... h4+ {[%clk 0:01:05.2]} 55. Kf2 {[%clk
0:00:12.3]} 55... Ra3 {[%clk 0:01:04.3]} 56. Rb8 {[%clk 0:00:12.7]} 56... Ra2+
{[%clk 0:01:04.4]} 57. Kg1 {[%clk 0:00:13.1]} 57... Kg7 {[%clk 0:01:01.1]} 58.
Rb7+ {[%clk 0:00:13.6]} 58... Kf6 {[%clk 0:01:01.3]} 59. Rh7 {[%clk 0:00:13.8]}
59... Ra3 {[%clk 0:00:59.1]} 60. Kg2 {[%clk 0:00:13.9]} 60... Ra2+ {[%clk
0:00:58.1]} 61. Kg1 {[%clk 0:00:14.4]} 61... g5 {[%clk 0:00:56.2]} 62. Rh6+
{[%clk 0:00:14.2]} 62... Kg7 {[%clk 0:00:56.4]} 63. fxg5 {[%clk 0:00:15.1]}
63... Ra4 {[%clk 0:00:56.1]} 64. Kg2 {[%clk 0:00:14.7]} 64... Rf4 {[%clk
0:00:56.8]} 65. Ra6 {[%clk 0:00:13]} 65... Rb4 {[%clk 0:00:53.1]} 66. Rf6 {[%clk
0:00:12.8]} 66... Rf4 {[%clk 0:00:51.6]} 67. Rh6 {[%clk 0:00:12.9]} 67... Ra4
{[%clk 0:00:49.6]} 68. Kh3 {[%clk 0:00:12.9]} 68... Ra3 {[%clk 0:00:47.4]} 69.
Kxh4 {[%clk 0:00:10.4]} 69... Rxf3 {[%clk 0:00:47.4]} 70. Rb6 {[%clk 0:00:10.6]}
70... Rf4+ {[%clk 0:00:47.9]} 71. Kh5 {[%clk 0:00:10.7]} 71... Rc4 {[%clk
0:00:40.6]} 72. Rb7+ {[%clk 0:00:11.2]} 72... Kg8 {[%clk 0:00:41.1]} 73. Kg6
{[%clk 0:00:12.1]} 73... Rc6+ {[%clk 0:00:40.8]} 74. Kxf5 {[%clk 0:00:12.6]}
74... Ra6 {[%clk 0:00:41.5]} 75. Kg4 {[%clk 0:00:12.9]} 75... Rc6 {[%clk
0:00:40.9]} 76. Kh5 {[%clk 0:00:13.3]} 76... Ra6 {[%clk 0:00:41.4]} 77. Rc7
{[%clk 0:00:13.9]} 77... Rb6 {[%clk 0:00:41.6]} 78. Ra7 {[%clk 0:00:14.3]} 78...
Rc6 {[%clk 0:00:41.9]} 79. Rb7 {[%clk 0:00:14.7]} 79... Ra6 {[%clk 0:00:42.1]}
80. Rd7 {[%clk 0:00:15.1]} 80... Rb6 {[%clk 0:00:42.6]} 81. Rd8+ {[%clk
0:00:15.6]} 81... Kg7 {[%clk 0:00:42.7]} 82. Rd7+ {[%clk 0:00:16.5]} 82... Kg8
{[%clk 0:00:43.2]} 83. Rd2 {[%clk 0:00:17.1]} 83... Ra6 {[%clk 0:00:43.1]} 84.
Rb2 {[%clk 0:00:17.4]} 84... Rc6 {[%clk 0:00:43]} 85. Ra2 {[%clk 0:00:18]} 85...
Rb6 {[%clk 0:00:43.1]} 86. Ra7 {[%clk 0:00:18.2]} 86... Rc6 {[%clk 0:00:43.2]}
87. g6 {[%clk 0:00:18.5]} 87... Rc1 {[%clk 0:00:42.9]} 88. Kh6 {[%clk
0:00:18.9]} 88... Rh1+ {[%clk 0:00:43]} 89. Kg5 {[%clk 0:00:19.8]} 89... Rg1+
{[%clk 0:00:43.9]} 90. Kf6 {[%clk 0:00:20.7]} 90... Rf1+ {[%clk 0:00:44.5]} 91.
Kg5 {[%clk 0:00:21.2]} 91... Rg1+ {[%clk 0:00:44.9]} 92. Kf6 {[%clk 0:00:22.1]}
92... Rf1+ {[%clk 0:00:45.4]} 93. Kg5 {[%clk 0:00:23]} 93... Rg1+ {[%clk
0:00:45.6]} 1/2-1/2

[Event "*** Titled Tuesday Blitz"]
[Site "Chess.com"]
[Date "2020.04.21"]
[Round "6"]
[White "Sychev_Klementy"]
[Black "Leonid_Starozhilov"]
[Result "1-0"]
[WhiteElo "2847"]
[BlackElo "2633"]
[TimeControl "180+1"]
[EndTime "11:10:34 PDT"]
[Termination "Sychev_Klementy won on time"]

1. e4 {[%clk 0:00:03.1]} 1... d6 {[%clk 0:03:00]} 2. Nf3 {[%clk 0:00:03.5]} 2...
Nf6 {[%clk 0:03:00.7]} 3. Nc3 {[%clk 0:00:03.9]} 3... Nbd7 {[%clk 0:03:01.1]} 4.
d4 {[%clk 0:00:04.5]} 4... e5 {[%clk 0:03:02]} 5. Rg1 {[%clk 0:00:05.2]} 5... h5
{[%clk 0:03:01.9]} 6. h3 {[%clk 0:00:05.3]} 6... c6 {[%clk 0:03:02.4]} 7. g4
{[%clk 0:00:05.6]} 7... hxg4 {[%clk 0:03:02.7]} 8. hxg4 {[%clk 0:00:06.5]} 8...
exd4 {[%clk 0:03:03.3]} 9. Nxd4 {[%clk 0:00:06.3]} 9... Nc5 {[%clk 0:03:04]} 10.
Qe2 {[%clk 0:00:06.9]} 10... Bxg4 {[%clk 0:01:11]} 11. Rxg4 {[%clk 0:00:05.9]}
11... Nxg4 {[%clk 0:01:11.7]} 12. Qxg4 {[%clk 0:00:06.2]} 12... Qf6 {[%clk
0:00:26.9]} 13. Be3 {[%clk 0:00:04.9]} 13... Rh4 {[%clk 0:00:27]} 14. Qg2 {[%clk
0:00:04.3]} 14... g6 {[%clk 0:00:20.5]} 15. O-O-O {[%clk 0:00:04.5]} 15... Bh6
{[%clk 0:00:17.7]} 16. Bxh6 {[%clk 0:00:04.6]} 16... Rxh6 {[%clk 0:00:18.6]} 17.
Qg4 {[%clk 0:00:05]} 17... Rh4 {[%clk 0:00:16.8]} 18. Qg3 {[%clk 0:00:05.2]}
18... O-O-O {[%clk 0:00:14.1]} 19. f3 {[%clk 0:00:05.1]} 19... Rdh8 {[%clk
0:00:12.7]} 20. Nb3 {[%clk 0:00:05.3]} 20... Nxb3+ {[%clk 0:00:10.1]} 21. axb3
{[%clk 0:00:05.7]} 21... Qe5 {[%clk 0:00:05.7]} 22. Qxe5 {[%clk 0:00:04.6]}
22... dxe5 {[%clk 0:00:06.6]} 23. Be2 {[%clk 0:00:05.1]} 23... Rh1 {[%clk
0:00:06.7]} 24. Kd2 {[%clk 0:00:04.9]} 24... Rd8+ {[%clk 0:00:06.4]} 25. Ke3
{[%clk 0:00:04.6]} 25... Rdh8 {[%clk 0:00:06.9]} 26. Rxh1 {[%clk 0:00:04]} 26...
Rxh1 {[%clk 0:00:07.8]} 27. Nd1 {[%clk 0:00:04.4]} 27... Kd7 {[%clk 0:00:07.8]}
28. Nf2 {[%clk 0:00:04.6]} 28... Rh8 {[%clk 0:00:06.2]} 29. Nd3 {[%clk
0:00:04.6]} 29... Kd6 {[%clk 0:00:06.3]} 30. b4 {[%clk 0:00:05.1]} 30... b6
{[%clk 0:00:06.4]} 31. c3 {[%clk 0:00:04.9]} 31... f6 {[%clk 0:00:06.7]} 32. Bd1
{[%clk 0:00:05]} 32... f5 {[%clk 0:00:06.8]} 33. Be2 {[%clk 0:00:04.9]} 33...
Rh2 {[%clk 0:00:07.1]} 34. Kd2 {[%clk 0:00:03.7]} 34... fxe4 {[%clk 0:00:05.7]}
35. fxe4 {[%clk 0:00:03.8]} 35... Rh4 {[%clk 0:00:06.3]} 36. Ke3 {[%clk
0:00:03.9]} 36... Rh3+ {[%clk 0:00:06.7]} 37. Bf3 {[%clk 0:00:04.2]} 37... Rh2
{[%clk 0:00:06.8]} 38. Nf2 {[%clk 0:00:04.1]} 38... Rh8 {[%clk 0:00:05.9]} 39.
Be2 {[%clk 0:00:04.4]} 39... Ra8 {[%clk 0:00:05.9]} 40. Kd2 {[%clk 0:00:03.4]}
40... a5 {[%clk 0:00:06.3]} 41. bxa5 {[%clk 0:00:03.8]} 41... Rxa5 {[%clk
0:00:07.2]} 42. Ng4 {[%clk 0:00:04.1]} 42... Ra8 {[%clk 0:00:07.1]} 43. Ne3
{[%clk 0:00:04.3]} 43... b5 {[%clk 0:00:07.1]} 44. Bf3 {[%clk 0:00:04]} 44...
Rf8 {[%clk 0:00:07.4]} 45. Ke2 {[%clk 0:00:04.2]} 45... Rh8 {[%clk 0:00:08.1]}
46. Bg2 {[%clk 0:00:04.3]} 46... Ra8 {[%clk 0:00:08.5]} 47. Kd2 {[%clk
0:00:04.7]} 47... Ra1 {[%clk 0:00:08.3]} 48. Nd1 {[%clk 0:00:04.9]} 48... Ra8
{[%clk 0:00:08.3]} 49. Bf3 {[%clk 0:00:05.1]} 49... Rh8 {[%clk 0:00:08.8]} 50.
Ke3 {[%clk 0:00:04.9]} 50... Kc5 {[%clk 0:00:09.2]} 51. Nf2 {[%clk 0:00:05.4]}
51... Ra8 {[%clk 0:00:09.2]} 52. Nd3+ {[%clk 0:00:05.4]} 52... Kd6 {[%clk
0:00:10]} 53. Bg4 {[%clk 0:00:05.6]} 53... Ra2 {[%clk 0:00:10.2]} 54. b4 {[%clk
0:00:05.3]} 54... Ra3 {[%clk 0:00:10.2]} 55. Kd2 {[%clk 0:00:05.4]} 55... Ra2+
{[%clk 0:00:10.7]} 56. Kc1 {[%clk 0:00:05.7]} 56... Rg2 {[%clk 0:00:11.2]} 57.
Bf3 {[%clk 0:00:06]} 57... Rg3 {[%clk 0:00:11.6]} 58. Be2 {[%clk 0:00:06.4]}
58... Re3 {[%clk 0:00:11.8]} 59. Kd2 {[%clk 0:00:06.8]} 59... Rxe4 {[%clk
0:00:12.1]} 60. Bf3 {[%clk 0:00:07.2]} 60... Rh4 {[%clk 0:00:12.4]} 61. Nf2
{[%clk 0:00:07.3]} 61... Rh2 {[%clk 0:00:12.4]} 62. Ke3 {[%clk 0:00:07.3]} 62...
Rh8 {[%clk 0:00:13.1]} 63. Ne4+ {[%clk 0:00:07.5]} 63... Kc7 {[%clk 0:00:13.6]}
64. Nc5 {[%clk 0:00:07.2]} 64... Rh2 {[%clk 0:00:12.4]} 65. Nd3 {[%clk
0:00:06.9]} 65... Rh3 {[%clk 0:00:12.3]} 66. Nxe5 {[%clk 0:00:06.6]} 66... Kb6
{[%clk 0:00:11]} 67. Nd3 {[%clk 0:00:06.1]} 67... Rh4 {[%clk 0:00:11]} 68. Nf2
{[%clk 0:00:05.6]} 68... Rc4 {[%clk 0:00:11.1]} 69. Ne4 {[%clk 0:00:05.3]} 69...
Kc7 {[%clk 0:00:09.8]} 70. Be2 {[%clk 0:00:05.5]} 70... Kb6 {[%clk 0:00:06.1]}
71. Bxc4 {[%clk 0:00:05.2]} 71... bxc4 {[%clk 0:00:07]} 72. Kd4 {[%clk
0:00:05.6]} 72... g5 {[%clk 0:00:07.2]} 73. Kxc4 {[%clk 0:00:05.4]} 73... g4
{[%clk 0:00:08.1]} 74. Kd4 {[%clk 0:00:05.8]} 74... Kb5 {[%clk 0:00:08.2]} 75.
Ng3 {[%clk 0:00:05.1]} 75... Ka4 {[%clk 0:00:07.8]} 76. Kc5 {[%clk 0:00:05.3]}
1-0